bitfinex/quotes_SOLUSD_20241007
["timestamp","ask_amount","ask_price","bid_price","bid_amount"]
[1728267614379,16.17959,150.44,150.4,19.10551552]
[1728267614696,22.82679,150.44,150.4,19.10551552]
[1728267615215,6.648,150.43,150.4,19.10551552]
[1728267615385,8.30998999,150.43,150.38,19.10551552]
[1728267615718,6.648,150.43,150.38,25.75521552]
[1728267615890,0.12549,150.43,150.4,19.10551552]
[1728267616091,0.12549,150.43,150.41,1.32955868]
[1728267616783,0.12549,150.43,150.4,20.43506716]
[1728267617710,0.12549,150.43,150.4,20.43510038]
[1728267617907,0.12549,150.43,150.4,19.10551552]
[1728267618212,0.12549,150.43,150.41,1.32953986]
[1728267618394,0.12549,150.43,150.4,19.10551552]
[1728267621008,0.12549,150.42,150.38,19.10551552]
[1728267621210,0.12549,150.42,150.39,7.97886231]
[1728267621509,0.12549,150.42,150.4,19.10551552]
[1728267621900,22.7012,150.44,150.41,1.3295738]
[1728267622098,16.0541,150.44,150.41,1.3295738]
[1728267622491,16.0541,150.44,150.42,12.23242215]
[1728267623202,15.6546,150.48,150.42,12.23242215]
[1728267623412,6.6463,150.46,150.44,12.23242215]
[1728267624389,6.6467,150.45,150.44,12.23242215]
[1728267624794,6.89718,150.47,150.44,12.23242215]
[1728267625011,0.25098,150.47,150.44,12.23242215]
[1728267625185,6.6463,150.46,150.44,12.23242215]
[1728267625988,1.91257199,150.47,150.44,12.23242215]
[1728267625989,0.12549,150.47,150.44,12.23242215]
[1728267626199,15.6546,150.48,150.46,18.87852215]
[1728267626502,22.646,150.52,150.46,28.84802215]
[1728267626813,22.646,150.52,150.51,12.23242215]
[1728267627816,22.89698,150.52,150.51,12.23242215]
[1728267628011,16.002,150.52,150.51,12.23242215]
[1728267628494,16.002,150.52,150.49,19.09182207]
[1728267628694,16.002,150.52,150.5,1.32875648]
[1728267629112,22.5289,150.56,150.5,7.97315648]
[1728267629301,6.6425,150.55,150.51,19.09182207]
[1728267629625,6.6431,150.54,150.49,19.09182207]
[1728267629799,6.6432,150.53,150.49,19.09182207]
[1728267630902,6.6436,150.52,150.49,19.09182207]
[1728267631318,6.6441,150.51,150.47,19.09182207]
[1728267631516,24.027864,150.54,150.47,19.09182207]
[1728267631811,24.027864,150.54,150.45,35.70832207]
[1728267631812,0.12549,150.5,150.45,35.70832207]
[1728267632003,6.6455,150.48,150.45,19.09182207]
[1728267632328,0.12549,150.49,150.45,19.09182207]
[1728267632507,6.6446,150.5,150.45,19.09182207]
[1728267632704,0.25098,150.52,150.45,19.09182207]
[1728267632893,0.12549,150.5,150.46,6.6462]
[1728267633096,0.12549,150.5,150.47,1.32893922]
[1728267633697,6.76919,150.52,150.47,25.73762207]
[1728267634001,6.6437,150.52,150.48,6.6453]
[1728267634320,6.6437,150.52,150.47,25.73762207]
[1728267634516,6.76959,150.51,150.47,19.09182207]
[1728267634827,0.12549,150.51,150.47,25.73752207]
[1728267635005,6.89368,150.54,150.48,24.58611602]
[1728267635399,0.12549,150.52,150.48,23.2573]
[1728267635729,17.1305085,150.63,150.51,19.09182207]
[1728267635730,6.4204,150.61,150.51,19.09182207]
[1728267635895,22.7628,150.6,150.55,19.09182207]
[1728267636105,16.1227,150.6,150.57,19.09182207]
[1728267636314,16.1227,150.6,150.58,1.32802522]
[1728267636516,16.1227,150.6,150.57,19.09182207]
[1728267637327,22.7628,150.6,150.57,19.09182207]
[1728267639001,16.1227,150.6,150.57,19.09182207]
[1728267640209,22.7628,150.6,150.57,19.09182207]
[1728267640715,22.7628,150.6,150.55,25.73402207]
[1728267641728,6.6413,150.58,150.55,19.09182207]
[1728267642017,0.12549,150.59,150.54,6.6427]
[1728267642329,6.76609,150.59,150.54,6.6427]
[1728267642896,6.76609,150.59,150.53,25.73492207]
[1728267643093,0.12549,150.59,150.53,25.73492207]
[1728267643301,0.12549,150.57,150.53,19.09182207]
[1728267644120,0.12549,150.57,150.54,1.32830351]
[1728267644327,22.7632,150.6,150.55,25.73402207]
[1728267645209,6.6407,150.59,150.54,6.6427]
[1728267645604,0.12549,150.58,150.54,6.6427]
[1728267646626,22.763,150.6,150.55,16.6056]
[1728267647027,22.763,150.6,150.55,42.33952207]
[1728267648325,16.1227,150.6,150.56,6.6418]
[1728267650623,16.1227,150.6,150.55,35.69742207]
[1728267650828,22.7629,150.6,150.55,42.33952207]
[1728267652638,22.7629,150.6,150.57,12.20887024]
[1728267653330,16.1227,150.6,150.57,12.20887024]
[1728267655545,0.25098,150.59,150.51,16.6091]
[1728267655737,16.1227,150.6,150.55,12.20887024]
[1728267655924,16.1227,150.6,150.55,18.85107024]
[1728267655925,22.7628,150.6,150.55,18.85107024]
[1728267656324,22.7628,150.6,150.57,12.20887024]
[1728267657955,6.4204,150.61,150.59,12.20887024]
[1728267658129,21.6618,150.64,150.6,1.32784373]
[1728267658454,6.6388,150.63,150.6,1.32784373]
[1728267658626,6.6388,150.63,150.6,12.20887024]
[1728267659827,6.6388,150.63,150.61,1.32763134]
[1728267660224,6.6388,150.63,150.6,12.20887024]
[1728267661533,15.0235,150.64,150.61,1.32764244]
[1728267661730,21.6619,150.64,150.61,1.32764244]
[1728267661943,15.9821,150.68,150.62,12.20887024]
[1728267662245,15.9821,150.68,150.64,12.20887024]
[1728267662449,15.9821,150.68,150.65,1.32655963]
[1728267662633,15.9821,150.68,150.64,12.20887024]
[1728267662837,6.6371,150.67,150.64,12.20887024]
[1728267663142,6.6371,150.67,150.65,1.32654099]
[1728267663847,6.6371,150.67,150.64,12.20887024]
[1728267664050,6.6371,150.67,150.65,1.3265398]
[1728267665437,6.6371,150.67,150.64,12.20887024]
[1728267665642,6.6371,150.67,150.65,1.32654169]
[1728267665934,6.6371,150.67,150.64,12.20887024]
[1728267666644,6.6388,150.63,150.62,12.20887024]
[1728267666835,6.6392,150.62,150.6,12.20887024]
[1728267667022,6.6388,150.63,150.58,18.84977024]
[1728267667654,6.6388,150.63,150.6,12.20887024]
[1728267668554,6.6384,150.64,150.6,12.20887024]
[1728267669337,0.12549,150.66,150.6,12.20887024]
[1728267669540,6.6388,150.63,150.6,12.20887024]
[1728267669729,0.12549,150.62,150.57,16.6034]
[1728267670051,6.6397,150.61,150.58,12.20887024]
[1728267670543,6.76469,150.62,150.58,12.20887024]
[1728267670745,6.6392,150.62,150.58,12.20887024]
[1728267671051,6.64,150.61,150.58,12.20887024]
[1728267672038,16.1721,150.62,150.58,12.20887024]
[1728267672244,16.1721,150.62,150.6,12.20887024]
[1728267673443,15.8991,150.66,150.6,12.20887024]
[1728267673646,15.8991,150.66,150.62,12.20887024]
[1728267673647,22.5369,150.66,150.62,12.20887024]
[1728267673836,22.5369,150.66,150.63,1.32702993]
[1728267674035,22.5369,150.66,150.62,12.20887024]
[1728267674931,22.5369,150.66,150.63,1.32709842]
[1728267675132,15.8991,150.66,150.63,1.32709842]
[1728267675349,22.5366,150.66,150.63,1.32709842]
[1728267675651,15.8991,150.66,150.62,12.20887024]
[1728267675846,6.6379,150.65,150.62,12.20887024]
[1728267676629,6.6379,150.65,150.63,1.32720618]
[1728267676839,6.6379,150.65,150.62,12.20887024]
[1728267677552,6.6379,150.65,150.63,1.32737229]
[1728267678856,15.8991,150.66,150.64,12.20887024]
[1728267679052,16.2496,150.7,150.65,1.32665295]
[1728267679254,22.8853,150.7,150.68,12.20887024]
[1728267679435,6.6361,150.69,150.68,12.20887024]
[1728267679634,6.6361,150.69,150.66,12.20887024]
[1728267685545,6.6366,150.68,150.66,12.20887024]
[1728267685741,0.25098,150.69,150.62,6.6392]
[1728267685946,1.91029381,150.69,150.64,12.20887024]
[1728267686251,6.6375,150.66,150.64,12.20887024]
[1728267687862,0.25098,150.67,150.59,23.776884]
[1728267688060,6.6374,150.66,150.63,12.20887024]
[1728267691348,0.25098,150.67,150.63,12.20887024]
[1728267691543,6.88798,150.67,150.63,12.20887024]
[1728267691742,6.6375,150.66,150.63,12.20887024]
[1728267692459,6.6369,150.68,150.65,12.20887024]
[1728267695669,6.6369,150.68,150.66,1.32631293]
[1728267696461,6.6361,150.69,150.67,12.20887024]
[1728267696641,16.2496,150.7,150.64,6.6383]
[1728267696839,16.2496,150.7,150.66,12.20887024]
[1728267696840,6.6366,150.68,150.66,12.20887024]
[1728267697148,6.637,150.67,150.66,12.20887024]
[1728267697866,6.6366,150.68,150.66,12.20887024]
[1728267698041,16.1959,150.75,150.67,25.10311113]
[1728267698362,16.1959,150.75,150.73,12.20887024]
[1728267698569,6.6333,150.76,150.73,12.20887024]
[1728267699843,1.65841809,150.76,150.67,23.776884]
[1728267700040,21.65841809,150.76,150.68,12.20887024]
[1728267700453,1.65873082,150.75,150.7,12.20887024]
[1728267700745,6.6357,150.7,150.65,16.5941]
[1728267701055,6.6366,150.68,150.64,12.20887024]
[1728267701360,0.25098,150.71,150.65,1.32630384]
[1728267701361,0.12549,150.69,150.65,1.32630384]
[1728267701665,0.12549,150.69,150.66,12.20887024]
[1728267702459,0.12549,150.69,150.65,1.32630384]
[1728267703749,6.636,150.7,150.65,6.6378]
[1728267704374,6.636,150.7,150.66,1.3259161]
[1728267704545,6.636,150.7,150.65,6.6378]
[1728267706071,6.6365,150.69,150.64,19.05247079]
[1728267706240,6.43088,150.71,150.64,19.05247079]
[1728267706568,6.6368,150.68,150.64,19.05247079]
[1728267707283,6.6368,150.68,150.63,23.2347]
[1728267707567,6.637,150.67,150.63,16.596]
[1728267708166,6.43088,150.71,150.63,16.596]
[1728267708380,6.6366,150.68,150.63,23.2347]
[1728267708584,6.6371,150.67,150.63,16.596]
[1728267711348,0.12549,150.69,150.62,19.05247079]
[1728267711349,6.6376,150.66,150.62,19.05247079]
[1728267711549,0.12549,150.68,150.62,19.05247079]
[1728267712177,0.12549,150.69,150.62,19.05247079]
[1728267712674,1.91023656,150.7,150.62,19.05247079]
[1728267712876,6.6363,150.69,150.61,20.37571281]
[1728267713056,6.88668,150.7,150.65,6.6378]
[1728267713254,6.88668,150.7,150.64,19.05247079]
[1728267713255,0.25098,150.7,150.66,7.96338747]
[1728267713459,0.12549,150.7,150.66,7.96338747]
[1728267715174,0.12549,150.7,150.64,19.05247079]
[1728267715378,0.12549,150.69,150.62,19.05247079]
[1728267715585,6.6375,150.66,150.62,19.05247079]
[1728267715869,6.6375,150.66,150.62,25.69167079]
[1728267716473,22.069,150.67,150.62,25.69167079]
[1728267716649,22.069,150.67,150.62,19.05247079]
[1728267716650,15.432,150.67,150.62,19.05247079]
[1728267716853,6.6375,150.66,150.61,6.6396]
[1728267718159,6.6382,150.65,150.6,25.69227079]
[1728267718355,15.432,150.67,150.6,19.05247079]
[1728267718557,15.432,150.67,150.62,35.64947079]
[1728267718879,15.432,150.67,150.63,1.32658249]
[1728267719457,15.432,150.67,150.64,19.05247079]
[1728267719659,15.432,150.67,150.65,1.32648794]
[1728267720264,15.432,150.67,150.65,1.32647892]
[1728267720464,15.432,150.67,150.64,19.05247079]
[1728267720859,15.432,150.67,150.64,25.69077079]
[1728267721587,15.432,150.67,150.65,1.32648936]
[1728267721776,6.6375,150.66,150.62,35.64947079]
[1728267721967,6.6379,150.65,150.6,25.69247079]
[1728267722165,6.76299,150.66,150.61,6.6395]
[1728267722466,6.76299,150.66,150.62,1.32704532]
[1728267723163,15.432,150.67,150.63,6.6384]
[1728267724175,22.0693,150.67,150.62,25.69167079]
[1728267724367,6.6376,150.66,150.63,12.19780127]
[1728267725860,1.65945055,150.65,150.58,16.6021]
[1728267726076,6.6388,150.63,150.6,12.19780127]
[1728267727885,6.6384,150.64,150.61,1.32779658]
[1728267728078,0.25098,150.65,150.62,12.19780127]
[1728267728390,0.12549,150.65,150.62,12.19780127]
[1728267728766,6.76339,150.65,150.62,12.19780127]
[1728267734182,6.5038,150.66,150.63,1.32727291]
[1728267734392,15.432,150.67,150.64,12.19780127]
[1728267734593,15.432,150.67,150.66,12.19780127]
[1728267735166,12.6849,150.7,150.66,12.19780127]
[1728267735384,7.70827596,150.7,150.66,12.19780127]
[1728267735585,6.6366,150.68,150.66,12.19780127]
[1728267736382,1.65924587,150.68,150.64,12.19780127]
[1728267736688,6.6371,150.67,150.64,12.19780127]
[1728267736885,6.6371,150.67,150.61,16.5988]
[1728267736886,0.12549,150.66,150.61,16.5988]
[1728267737090,0.12549,150.65,150.62,12.19780127]
[1728267737398,6.76349,150.65,150.62,12.19780127]
[1728267737891,0.12549,150.65,150.62,12.19780127]
[1728267738068,6.76349,150.65,150.62,12.19780127]
[1728267738470,16.52389,150.66,150.62,6.6388]
[1728267738675,16.52389,150.66,150.61,17.92583296]
[1728267738878,16.52389,150.66,150.61,16.5984]
[1728267738879,6.6379,150.65,150.61,16.5984]
[1728267739187,6.6379,150.65,150.61,17.9256953]
[1728267739785,6.6379,150.65,150.61,16.5984]
[1728267740165,6.6379,150.65,150.62,1.3273595]
[1728267740570,6.6379,150.65,150.61,16.5984]
[1728267740770,6.6379,150.65,150.62,1.32734195]
[1728267741295,23.16129,150.66,150.62,1.32734195]
[1728267741587,23.16129,150.66,150.62,6.6392]
[1728267741772,23.16129,150.66,150.61,23.238]
[1728267742497,16.52389,150.66,150.62,1.32715565]
[1728267742671,16.52389,150.66,150.62,7.96595565]
[1728267743785,16.52389,150.66,150.62,6.6388]
[1728267744090,16.52389,150.66,150.62,7.9659421]
[1728267744566,6.6383,150.64,150.61,16.5984]
[1728267744776,6.6383,150.64,150.58,19.06187004]
[1728267744777,0.12549,150.63,150.58,19.06187004]
[1728267744994,0.12549,150.62,150.55,3.78136147]
[1728267745292,0.12549,150.62,150.56,3.78136147]
[1728267745494,0.12549,150.62,150.55,3.78136147]
[1728267745694,0.12549,150.62,150.56,3.78136147]
[1728267745992,6.6396,150.61,150.56,6.6415]
[1728267746195,6.6396,150.61,150.56,10.42286147]
[1728267747193,6.6396,150.61,150.57,6.6414]
[1728267747392,6.6392,150.62,150.58,1.32798362]
[1728267747797,0.25098,150.63,150.58,1.32798362]
[1728267747975,6.88968,150.63,150.58,1.32798362]
[1728267748692,6.88968,150.63,150.57,23.2435]
[1728267748693,6.6394,150.62,150.57,23.2435]
[1728267749294,6.6394,150.62,150.58,1.32798634]
[1728267749474,0.12549,150.62,150.58,6.6409]
[1728267749676,0.12549,150.62,150.59,1.32791368]
[1728267749976,0.12549,150.62,150.59,7.96831368]
[1728267750587,0.12549,150.62,150.57,16.6025]
[1728267750588,0.25098,150.64,150.58,19.06187004]
[1728267750896,0.25098,150.64,150.57,16.6025]
[1728267750897,6.6393,150.62,150.57,16.6025]
[1728267751196,6.6393,150.62,150.57,23.2438]
[1728267751398,6.88958,150.64,150.58,27.03075587]
[1728267751581,0.25098,150.64,150.59,6.6403]
[1728267751785,0.25098,150.64,150.59,1.32785841]
[1728267752090,6.4341,150.65,150.61,6.6395]
[1728267752297,6.4341,150.65,150.62,1.32720264]
[1728267754103,16.3984,150.66,150.63,1.32722758]
[1728267754282,16.3984,150.66,150.63,7.96562758]
[1728267754597,6.626,150.69,150.65,6.6379]
[1728267754805,6.626,150.69,150.66,1.32627824]
[1728267755682,6.626,150.69,150.66,1.32612185]
[1728267756003,22.0997,150.7,150.65,19.06187004]
[1728267756004,15.4636,150.7,150.65,19.06187004]
[1728267756382,15.4636,150.7,150.67,19.06187004]
[1728267756600,6.5991,150.73,150.67,19.06187004]
[1728267757600,13.2339,150.73,150.67,42.29017004]
[1728267758106,0.25098,150.72,150.64,19.06187004]
[1728267758278,1.90984138,150.72,150.64,19.06187004]
[1728267758981,6.6362,150.69,150.64,19.06187004]
[1728267759381,6.6362,150.69,150.64,25.70017004]
[1728267759587,0.12549,150.7,150.64,19.06187004]
[1728267759790,0.12549,150.71,150.64,19.06187004]
[1728267759994,6.6365,150.68,150.64,19.06187004]
[1728267761782,21.7446,150.68,150.63,23.2346]
[1728267762178,21.7446,150.68,150.58,6.045]
[1728267762179,6.6379,150.65,150.6,42.30177004]
[1728267762608,6.6388,150.63,150.58,25.70277004]
[1728267762784,6.6384,150.64,150.59,6.6404]
[1728267765309,6.6388,150.63,150.58,25.70277004]
[1728267766892,0.25098,150.63,150.59,6.6404]
[1728267767294,0.25098,150.64,150.6,6.64]
[1728267768017,6.88928,150.64,150.59,23.2409]
[1728267769108,6.3767,150.67,150.63,6.6387]
[1728267769322,15.1081,150.68,150.66,6.6371]
[1728267769489,6.3551,150.71,150.67,6.6369]
[1728267769909,15.6703,150.72,150.68,19.06187004]
[1728267771015,0.12549,150.71,150.68,19.06187004]
[1728267771315,0.12549,150.71,150.66,25.69917004]
[1728267775993,0.25098,150.71,150.66,19.06187004]
[1728267776219,8.29486045,150.7,150.65,6.6378]
[1728267776916,1.65906045,150.7,150.64,19.06187004]
[1728267777117,1.91006842,150.71,150.64,19.06187004]
[1728267777292,6.6357,150.7,150.64,25.70017004]
[1728267777727,6.6357,150.7,150.65,6.6378]
[1728267777899,8.54526867,150.71,150.65,6.6378]
[1728267778617,0.25098,150.71,150.67,6.6369]
[1728267779313,0.25098,150.71,150.66,19.06187004]
[1728267779619,0.25098,150.71,150.66,25.69927004]
[1728267780303,1.9099386,150.71,150.66,25.69927004]
[1728267780606,6.6357,150.7,150.64,42.29557004]
[1728267780811,6.6361,150.69,150.64,42.29557004]
[1728267781018,6.88658,150.71,150.65,6.6377]
[1728267782313,0.25098,150.71,150.66,25.69917004]
[1728267782819,0.25098,150.71,150.67,6.6367]
[1728267783020,0.12549,150.71,150.67,6.6367]
[1728267784422,0.12549,150.71,150.66,25.69927004]
[1728267784931,1.78443981,150.7,150.64,35.65767004]
[1728267785243,1.78443981,150.7,150.62,25.70087004]
[1728267785244,6.637,150.67,150.62,25.70087004]
[1728267785826,0.12549,150.67,150.62,25.70087004]
[1728267787010,6.76249,150.67,150.62,25.70087004]
[1728267787808,0.12549,150.66,150.62,19.06187004]
[1728267788005,0.12549,150.65,150.61,23.2384]
[1728267788326,6.5998,150.63,150.53,9.1263]
[1728267788517,6.5998,150.63,150.55,19.06187004]
[1728267788518,0.25098,150.62,150.55,19.06187004]
[1728267789031,1.91101198,150.62,150.55,19.06187004]
[1728267789832,0.25098,150.62,150.57,25.70317004]
[1728267790915,6.89018,150.62,150.57,25.70317004]
[1728267791209,8.55018923,150.62,150.57,25.70317004]
[1728267791805,6.89018,150.62,150.57,25.70317004]
[1728267794911,8.55021652,150.62,150.57,25.70317004]
[1728267795132,6.89018,150.62,150.57,25.70317004]
[1728267795332,0.25098,150.62,150.57,19.06187004]
[1728267795538,0.25098,150.62,150.58,6.6408]
[1728267797528,0.25098,150.62,150.57,25.70317004]
[1728267798435,6.89018,150.62,150.57,25.70317004]
[1728267799433,6.5998,150.63,150.57,19.06187004]
[1728267799743,0.25098,150.62,150.58,6.6409]
[1728267802933,0.25098,150.62,150.59,19.06187004]
[1728267803134,6.5998,150.63,150.59,25.70237004]
[1728267804051,6.5998,150.63,150.56,16.6037]
[1728267804052,0.12549,150.6,150.56,16.6037]
[1728267804216,0.12549,150.61,150.56,16.6037]
[1728267804418,1.91089134,150.62,150.57,12.20839137]
[1728267805129,6.6401,150.6,150.57,12.20839137]
[1728267806233,6.6401,150.6,150.56,23.2455]
[1728267806545,16.5868,150.59,150.56,23.2455]
[1728267808347,16.5868,150.59,150.56,42.32140027]
[1728267810651,16.5868,150.59,150.56,35.67960027]
[1728267812562,6.76679,150.58,150.54,19.07590027]
[1728267812846,6.76679,150.58,150.53,23.2503]
[1728267813222,6.76679,150.58,150.54,25.71850027]
[1728267813744,0.12549,150.58,150.54,25.71850027]
[1728267814967,1.78591135,150.58,150.54,25.71850027]
[1728267815449,8.42691135,150.58,150.54,19.07590027]
[1728267817246,6.6414,150.57,150.54,19.07590027]
[1728267817933,6.76649,150.58,150.53,42.32660027]
[1728267818138,6.6423,150.55,150.51,19.07590027]
[1728267819151,6.89288,150.56,150.51,25.71990027]
[1728267820023,1.91169325,150.56,150.51,19.07590027]
[1728267820223,6.6423,150.55,150.51,19.07590027]
[1728267820536,6.89288,150.56,150.51,25.71980027]
[1728267820848,8.55359372,150.56,150.51,25.71980027]
[1728267821530,1.91169372,150.56,150.51,19.07590027]
[1728267821730,7.95061367,150.57,150.51,19.07590027]
[1728267821945,6.2899,150.57,150.53,25.71870027]
[1728267823556,6.2899,150.57,150.53,19.07590027]
[1728267823846,6.2899,150.57,150.52,16.6084]
[1728267823847,16.5868,150.59,150.55,25.71800027]
[1728267824729,16.5868,150.59,150.56,6.6418]
[1728267824931,16.5868,150.59,150.57,6.6414]
[1728267825250,16.5868,150.59,150.55,19.07590027]
[1728267825428,16.5868,150.59,150.56,6.6418]
[1728267826463,16.5868,150.59,150.58,12.20547905]
[1728267836466,16.71229,150.59,150.54,16.606]
[1728267836643,6.76659,150.58,150.55,12.20547905]
[1728267837642,1.78588585,150.58,150.55,12.20547905]
[1728267837842,6.6418,150.56,150.51,16.6098]
[1728267838049,0.12549,150.55,150.52,12.20547905]
[1728267838463,6.76779,150.55,150.52,12.20547905]
[1728267838664,6.76739,150.56,150.52,12.20547905]
[1728267840438,6.76739,150.56,150.51,23.2538]
[1728267840753,6.76739,150.56,150.53,12.20547905]
[1728267841345,0.12549,150.56,150.53,12.20547905]
[1728267841563,0.12549,150.56,150.55,12.20547905]
[1728267841745,16.5868,150.59,150.55,18.84767905]
[1728267842054,16.5868,150.59,150.57,12.20547905]
[1728267843557,23.2273,150.59,150.57,12.20547905]
[1728267844761,16.5868,150.59,150.57,12.20547905]
[1728267845968,15.7603,150.63,150.57,12.20547905]
[1728267846261,15.7603,150.63,150.59,12.20547905]
[1728267846463,15.7603,150.63,150.59,18.84587905]
[1728267846875,15.7603,150.67,150.61,12.20547905]
[1728267847162,15.7603,150.67,150.63,18.84417905]
[1728267847367,15.7603,150.67,150.63,12.20547905]
[1728267847575,22.3973,150.67,150.63,12.20547905]
[1728267847941,15.7603,150.67,150.63,12.20547905]
[1728267848167,15.7603,150.67,150.63,18.84417905]
[1728267849170,15.7603,150.67,150.65,12.20547905]
[1728267849975,6.6361,150.7,150.65,18.84327905]
[1728267851550,6.6362,150.69,150.65,12.20547905]
[1728267852055,0.25098,150.67,150.63,12.20547905]
[1728267852253,6.6379,150.65,150.61,12.20547905]
[1728267852449,0.12549,150.66,150.61,18.84477905]
[1728267852672,0.12549,150.65,150.61,18.84477905]
[1728267855473,8.42300829,150.65,150.61,12.20547905]
[1728267855669,0.12549,150.64,150.61,12.20547905]
[1728267856554,22.53589,150.65,150.61,12.20547905]
[1728267857354,6.76379,150.64,150.61,12.20547905]
[1728267858078,15.89799,150.65,150.61,12.20547905]
[1728267858275,22.53589,150.65,150.61,12.20547905]
[1728267858779,0.12549,150.64,150.61,12.20547905]
[1728267860977,22.53599,150.65,150.63,12.20547905]
[1728267861176,15.89799,150.65,150.63,12.20547905]
[1728267863677,0.12549,150.65,150.63,12.20547905]
[1728267863861,6.6376,150.66,150.63,12.20547905]
[1728267863862,0.12549,150.66,150.63,12.20547905]
[1728267864066,0.12549,150.66,150.65,12.20547905]
[1728267864675,6.6366,150.68,150.65,12.20547905]
[1728267865064,0.12549,150.67,150.65,12.20547905]
[1728267866088,1.65938152,150.67,150.63,12.20547905]
[1728267866260,6.6374,150.66,150.63,12.20547905]
[1728267869492,0.12549,150.68,150.65,18.84317905]
[1728267869985,0.12549,150.68,150.65,12.20547905]
[1728267870564,6.76209,150.68,150.65,12.20547905]
[1728267871685,6.638,150.65,150.6,23.2397]
[1728267871984,6.638,150.65,150.62,12.20547905]
[1728267872314,6.6374,150.66,150.62,12.20547905]
[1728267873862,6.6379,150.65,150.6,23.2396]
[1728267874067,6.6379,150.65,150.62,12.20547905]
[1728267874811,0.12549,150.66,150.63,6.6387]
[1728267874989,0.12549,150.66,150.62,35.44197905]
[1728267875291,6.76299,150.66,150.62,35.44197905]
[1728267875462,6.6379,150.65,150.6,6.64]
[1728267875660,6.6379,150.65,150.62,12.20547905]
[1728267876489,8.42334222,150.64,150.6,12.20547905]
[1728267876794,6.76379,150.64,150.6,12.20547905]
[1728267876976,6.76379,150.64,150.6,18.84547905]
[1728267878272,6.76339,150.65,150.6,18.84547905]
[1728267878484,6.76339,150.65,150.62,12.20547905]
[1728267879191,6.6383,150.64,150.62,12.20547905]
[1728267880896,6.6383,150.64,150.6,12.20547905]
[1728267881186,0.12549,150.62,150.55,42.3368]
[1728267881393,6.6397,150.61,150.59,12.20547905]
[1728267881688,6.6401,150.6,150.57,12.20547905]
[1728267881893,1.78552478,150.62,150.57,12.20547905]
[1728267882096,6.6392,150.62,150.59,12.20547905]
[1728267882475,0.25098,150.63,150.61,12.20547905]
[1728267882681,6.88978,150.63,150.61,12.20547905]
[1728267882898,0.25098,150.63,150.61,12.20547905]
[1728267883194,0.12549,150.63,150.61,12.20547905]
[1728267885078,6.76429,150.63,150.61,12.20547905]
[1728267891998,8.42414439,150.63,150.61,12.20547905]
[1728267892593,1.78534439,150.63,150.61,12.20547905]
[1728267892799,6.6392,150.62,150.61,12.20547905]
[1728267892985,6.6392,150.62,150.59,12.20547905]
[1728267895092,6.76459,150.63,150.59,12.20547905]
[1728267896599,6.76459,150.63,150.6,12.20547905]
[1728267900106,6.76459,150.63,150.58,6.6408]
[1728267900310,6.6401,150.6,150.54,16.6063]
[1728267900497,6.6408,150.59,150.57,12.20547905]
[1728267900801,6.6408,150.59,150.56,12.20547905]
[1728267900981,6.6401,150.6,150.57,12.20547905]
[1728267902378,6.76479,150.62,150.59,12.20547905]
[1728267902583,6.76439,150.63,150.6,12.20547905]
[1728267902805,6.76439,150.63,150.61,12.20547905]
[1728267903308,6.76439,150.63,150.6,12.20547905]
[1728267903598,6.6393,150.62,150.6,12.20547905]
[1728267903986,6.6393,150.62,150.59,12.20547905]
[1728267905704,0.12549,150.63,150.59,12.20547905]
[1728267905911,6.6392,150.62,150.59,12.20547905]
[1728267906502,6.76429,150.63,150.59,12.20547905]
[1728267914096,6.6379,150.65,150.61,12.20547905]
[1728267914296,6.6385,150.64,150.61,12.20547905]
[1728267914815,21.65974267,150.67,150.61,12.20547905]
[1728267915117,6.6388,150.63,150.59,6.6405]
[1728267915319,6.6388,150.63,150.6,12.20547905]
[1728267917888,0.12549,150.64,150.6,12.20547905]
[1728267918118,6.6393,150.62,150.58,28.80707905]
[1728267921602,0.12549,150.63,150.6,12.20547905]
[1728267922812,6.76419,150.63,150.6,12.20547905]
[1728267923923,6.76429,150.63,150.6,12.20547905]
[1728267924617,0.25098,150.61,150.49,6.60755314]
[1728267924921,6.6413,150.58,150.54,12.20547905]
[1728267925099,6.6413,150.58,150.55,3.78885618]
[1728267925302,6.6413,150.58,150.54,12.20547905]
[1728267925303,6.6413,150.58,150.54,18.84817905]